[Event "Turkish Youth Championships 2023"]
[Site "Samsun"]
[Date "2023.05.20"]
[Round "2.1"]
[White "Yuksel, Fatih Canberk"]
[Black "Isik, Alparslan"]
[Result "0-1"]
[ECO "E72"]
[WhiteElo "1599"]
[BlackElo "2451"]
[Annotator "TA"]
[PlyCount "84"]
[EventDate "2023.05.19"]
[EventType "swiss"]
[EventCountry "TUR"]
[SourceTitle "playchess.com"]
[Source "ChessBase"]
[SourceQuality "1"]
[TimeControl "5400+30"]

{[%evp 14,84,33,9,0,1,8,0,37,26,19,13,28,-27,-27,-91,-10,-84,-12,-71,-65,-74,-10,-17,-16,-6,-4,-10,0,-4,0,-4,0,0,0,-15,55,-42,21,0,2,-32,-39,-35,0,0,0,-49,-54,-62,-47,-57,-76,-83,-31,-38,0,-74,0,0,0,0,0,0,0,-125,-75,-86,0,-56,-45,-841,-814]} 1. d4 Nf6 2. c4 g6 3. Nf3 Bg7 4. g3 O-O 5. Bg2 d6 6. Nc3 Nbd7 7. e4 e5 8. d5 Nc5 {E72: King's Indian: 4 e4 d6 5 g3.} 9. Qc2 a5 10. Be3 Ne8 {[#] The position is equal.} 11. O-O-O $146 {[%emt 0:20:00]} (11. h4 {seems wilder.} f5 12. h5 fxe4 13. Nxe4 Nxe4 14. hxg6 Rxf3 15. Bxf3 Nc5 16. gxh7+ Kh8 17. Qg6) ({Predecessor:} 11. Bxc5 dxc5 12. Nd2 f5 13. O-O f4 14. Qd3 Nd6 15. Nb5 Bd7 16. a4 g5 17. Ra3 {0-1 De Araujo,J (2002)-Perdomo,L (2422) Castanhal op 3rd 2014 (3)}) 11... f5 {[%emt 0:21:00]} 12. Bxc5 {[%emt 0:03:30]} dxc5 {[%emt 0:00:30]} 13. Rhe1 {[%emt 0:08:30]} (13. h4 $142) 13... Nd6 $11 {[%emt 0:01:30]} 14. Nd2 {[%emt 0:04:30] [#]} (14. Qe2 $11) 14... b6 {[%emt 0:06:30]} (14... Bh6 $1 $17 15. Kb1 Bxd2 16. Rxd2 Nxc4) 15. f3 {[%emt 0:06:30]} (15. b3 $11 {remains equal.}) 15... Bd7 {[%emt 0:06:30]} (15... Bh6 $17 16. Qd3 a4) 16. a4 {[%emt 0:04:30]} (16. Kb1 $11) 16... Bh6 $17 {[%emt 0:06:30]} 17. b3 {[%emt 0:01:30]} Qf6 {[%emt 0:05:30]} ({Black should play} 17... fxe4 $17 18. Ncxe4 Nf5) 18. Kb2 {[%emt 0:03:30]} Rae8 {[%emt 0:00:30]} 19. Re2 {[%emt 0:04:30]} Re7 {[%emt 0:03:30]} 20. Rde1 {[%emt 0:00:30]} Rfe8 {[%emt 0:00:00]} 21. Qd3 Bg5 {[%emt 0:01:00]} 22. Rf1 {[%emt 0:07:00]} Qg7 {[%emt 0:00:30]} 23. Ka2 {[%emt 0:00:30]} Qh6 {[%emt 0:00:30]} 24. h4 {[%emt 0:02:30]} Bf6 {[%emt 0:00:30]} (24... Bxd2 $1 $11 25. Qxd2 Qxd2+ 26. Rxd2 Rf8) 25. Nb5 {[%emt 0:03:30]} (25. Bh3 $14) 25... Bc8 {[%emt 0:12:30]} (25... Bxb5 $15 26. cxb5 f4 27. gxf4 Qxf4) 26. Na7 {[%emt 0:04:30]} (26. Bh3 {is interesting.} f4 27. Rh1 fxg3 28. Rg2) 26... Bb7 {[%emt 0:00:30]} 27. Bh3 {[%emt 0:00:00][%cal Re4f5]} f4 {[%emt 0:00:00]} 28. gxf4 {[%emt 0:01:00]} Qxf4 {[%emt 0:06:00]} 29. h5 {[%emt 0:00:30]} gxh5 {[%emt 0:00:30]} 30. Rg2+ {[%emt 0:00:30]} (30. Nb5 $11 {should be considered.}) 30... Kh8 $15 {[%emt 0:00:30]} 31. Rfg1 {[%emt 0:01:30]} Rg7 {[%emt 0:00:00]} 32. Be6 {[%emt 0:00:30] Wards off Reg8} Ree7 {[%emt 0:01:00][%cal Be8e7,Be7g7,Bg7g4][%mdl 32] Active counter play!} 33. Nb5 {[%emt 0:00:30] [#]} Rxg2 {[%emt 0:01:30]} (33... Rg5 $1 $17) 34. Rxg2 {[%emt 0:00:30][%csl Ge6][%cal Rg2g8]} Bg5 {[%emt 0:02:30]} 35. Nb1 {[%emt 0:02:30]} (35. Nf1 $1 $11) 35... Ba6 {[%emt 0:01:30]} ({Black should try} 35... Rg7 $17) 36. Nxd6 $1 $11 {[%emt 0:02:30]} cxd6 {[%emt 0:00:30]} 37. Nc3 {[%emt 0:00:00] Strongly threatening Ne2.} Rg7 {[%emt 0:00:00]} 38. Ne2 $1 {[%emt 0:01:00]} Qf8 {[%emt 0:00:00]} 39. Ng1 {[%emt 0:03:55]} (39. f4 $11 {keeps the balance.} exf4 40. Rf2) 39... Bf4 {[%emt 0:06:30]} ({Better is} 39... Bh6 40. Qe2 Qf4 41. Rxg7 Kxg7 42. Qg2+ Bg5) 40. Qf1 $17 {[%emt 0:01:02]} Bg3 {[%emt 0:00:30]} (40... Rxg2+ $17 41. Qxg2 Qg7 42. Qxg7+ Kxg7) 41. Ne2 {[%emt 0:01:19]} (41. f4 $11) 41... h4 $15 {[%emt 0:00:00]} 42. Bg4 $2 {[%emt 0:01:30][%mdl 8192]} (42. Ka3 $15) 42... Rxg4 {[%emt 0:00:00][%mdl 64] Pin.   Weighted Error Value: White=0.40/Black=0.27 (precise)} 0-1

[Event "Turkish Youth Championships 2023"]
[Site "Samsun"]
[Date "2023.05.20"]
[Round "2.2"]
[White "Akbas, Umut Ata"]
[Black "Cicek, Bilal Emre"]
[Result "1-0"]
[ECO "D02"]
[WhiteElo "2417"]
[BlackElo "1600"]
[Annotator "TA"]
[PlyCount "79"]
[EventDate "2023.05.19"]
[EventType "swiss"]
[EventCountry "TUR"]
[SourceTitle "playchess.com"]
[Source "ChessBase"]
[SourceQuality "1"]
[TimeControl "5400+30"]

{[%evp 11,79,-11,-10,-3,-9,-13,-12,0,-9,0,0,0,0,0,-9,0,-8,-69,139,138,140,137,128,58,61,61,61,59,58,58,54,55,100,83,139,131,129,149,220,212,223,205,195,172,185,145,157,154,357,322,336,159,186,122,114,120,119,100,103,0,111,90,104,108,103,90,89,12,960,950]} 1. Nf3 d5 2. d4 e6 3. Bf4 Bd6 4. Bg3 Nf6 5. e3 O-O 6. Bd3 c5 7. c3 {D02: 1 d4 d5 2 Nf3 sidelines, including 2...Nf6 3 g3 and 2...Nf6 3 Bf4.} Qc7 8. dxc5 Qxc5 9. Nbd2 {The position is equal.} Nbd7 10. Qc2 e5 11. e4 dxe4 12. Nxe4 Nxe4 13. Bxe4 Nf6 {[#]} 14. O-O-O $146 ({White should play} 14. Nd2 $11) ({Predecessor:} 14. Rd1 Bg4 15. O-O Bh5 16. Rd2 Rfe8 17. Bxb7 Rab8 18. Be4 Rxb2 19. Bxh7+ Nxh7 20. Qxb2 Bxf3 21. gxf3 {1-0 Moroni,L (2532)-Melia,S (2368) Gibraltar Masters 18th 2020 (10)}) 14... Be6 $2 {[%emt 0:18:30]} (14... Nxe4 $15 {keeps the upper hand.} 15. Qxe4 f6) 15. Ng5 $16 {[%emt 0:23:00][%cal Re4h7]} (15. Bxb7 $6 Rad8 $11) 15... Bxa2 {[%emt 0:04:30]} 16. Bxh7+ {[%emt 0:18:30]} Kh8 {[%emt 0:00:30] [#]} 17. b4 {[%emt 0:08:30]} ({Better is} 17. Qf5 $1 $16 {[%cal Rf5h3] Qh3 is the strong threat.} Be6 18. Nxe6 fxe6 19. Qxe6 Kxh7 20. Rxd6 (20. Qxd6 Qa5 $16)) 17... Qc7 {[%emt 0:03:30][%cal Oa7a5]} 18. Rxd6 {[%emt 0:00:30]} Qxd6 {[%emt 0:03:30]} 19. Qxa2 {[%emt 0:00:30]} Nxh7 {[%emt 0:22:30]} 20. Nxf7+ {[%emt 0:00:30]} Rxf7 {[%emt 0:00:00][%mdl 64] Remove Defender} 21. Qxf7 {[%emt 0:00:00]} Rc8 {[%emt 0:04:00] [#]} 22. Qb3 {[%emt 0:01:00] Threatens to win with Re1. Active counter play!} (22. Qxb7 Rxc3+ 23. Kb2 Qd2+ 24. Ka1 Ra3+ 25. Kb1 Rb3+ 26. Ka1 Qb2#) 22... Qc6 {[%emt 0:09:30]} (22... Rd8 $2 23. Rd1 Qh6+ 24. Kb2 Rd2+ 25. Rxd2 Qxd2+ 26. Qc2 $16) ({Black should try} 22... a5) 23. Bxe5 {[%emt 0:08:30] Black must now prevent Rd1.} Qxg2 {[%emt 0:00:30]} 24. Qd1 {[%emt 0:00:30]} Qg5+ {[%emt 0:07:30]} (24... Nf6 $16) 25. f4 $18 {[%emt 0:00:30]} Qe7 {[%emt 0:04:30]} 26. Rg1 {[%emt 0:08:30]} Nf6 {[%emt 0:00:00] Black is weak on the dark squares} 27. Rg3 {[%emt 0:01:30] Strongly threatening Rh3+.} Rd8 {[%emt 0:10:00]} 28. Rh3+ {[%emt 0:01:30]} Kg8 {[%emt 0:00:32]} 29. Qb3+ {[%emt 0:00:30]} Nd5 $2 {[%emt 0:00:06]} (29... Rd5 $16 30. Rg3 (30. Bxf6 Qe1+ 31. Kb2 Qe2+ 32. Ka3 Qa6+ 33. Qa4 Qxa4+ 34. Kxa4 gxf6 $18) 30... Kf8) 30. Rd3 {[%emt 0:00:30]} Qe6 {[%emt 0:01:54]} 31. b5 {[%emt 0:05:30]} (31. c4 $18 Rc8 32. c5) 31... Kf7 $16 {[%emt 0:01:32][%cal Od5f4]} 32. Qd1 {[%emt 0:03:30]} (32. Qc4 $18) 32... Rd7 {[%emt 0:02:23]} 33. Qh5+ {[%emt 0:01:30]} Kg8 {[%emt 0:02:05][%cal Od5f4]} 34. Rh3 {[%emt 0:01:30] White threatens Qh8+ and mate.} Nf6 {[%emt 0:01:12]} 35. Qh8+ {[%emt 0:01:30]} ({Reject} 35. Bxf6 $6 Qe1+ 36. Kc2 Rd2+ 37. Kb3 Qb1+ 38. Kc4 Qa2+ 39. Kb4 Qb2+ 40. Kc4 Qa2+ 41. Kb4 Qb2+ 42. Kc4 Qa2+ $11) 35... Kf7 {[%emt 0:00:02]} 36. Rg3 {[%emt 0:00:30][%csl Gh8][%cal Rg3g7] Inhibits Qg4.} Ne8 {[%emt 0:00:37]} 37. Qh5+ $40 {[%emt 0:03:11][%mdl 128] White goes for the king.} (37. Bxg7 Qe1+ 38. Kb2 Rd2+ 39. Ka3 Qa1+ 40. Kb3 Qb1+ 41. Kc4 Nd6+ 42. Kc5 Qxb5#) 37... Kf8 {[%emt 0:00:26]} 38. Bd4 {[%emt 0:02:56]} Rd5 {[%emt 0:01:52]} 39. Qh8+ {[%emt 0:02:59]} (39. Rg5 $16 Rxg5 40. fxg5) 39... Ke7 $2 {[%emt 0:00:13][%mdl 8192]} (39... Kf7 $11) 40. Re3 {[%emt 0:00:58] Weighted Error Value: White=0.23 (precise) /Black=0.25 (precise)} (40. Bxg7 {is a self mate.} Qe1+ 41. Kb2 Rd2+ 42. Ka3 Qa1+ 43. Kb3 Qb1+ 44. Kc4 Nd6+ 45. Kc5 Qxb5#) 1-0

[Event "Turkish Youth Championships 2023"]
[Site "Samsun"]
[Date "2023.05.20"]
[Round "2.2"]
[White "Oner, Cinar"]
[Black "Akbas, Umut Ata"]
[Result "0-1"]
[WhiteElo "1436"]
[BlackElo "2417"]
[Annotator "TA"]
[PlyCount "80"]
[EventDate "2023.05.19"]
[EventType "swiss"]
[EventCountry "TUR"]
[TimeControl "5400+30"]

{[%evp 14,80,39,0,0,0,12,0,0,-11,-13,-14,-5,-25,-15,-25,-11,-18,0,-24,-20,-25,-9,-41,-37,-140,-128,-183,-151,-200,-183,-281,-260,-307,-282,-410,-383,-454,-450,-577,-552,-643,-583,-597,-635,-628,-633,-643,-617,-635,-622,-617,-581,-852,-847,-1023,-981,-1240,-1550,-1554,-1263,-2093,-1808,-12832,-29967,-12819,-12825,-29985,-29986]} 1. e4 {[%emt 0:01:00]} c5 {[%emt 0:01:00]} 2. Nf3 {[%emt 0:00:30]} d6 {[%emt 0:00:30]} 3. d4 {[%emt 0:00:30]} cxd4 {[%emt 0:00:30]} 4. Nxd4 {[%emt 0:00:30]} Nf6 {[%emt 0:00:30]} 5. Nc3 {[%emt 0:00:30]} a6 {[%emt 0:00:30]} 6. a4 {[%emt 0:00:00]} e6 {[%emt 0:04:30]} 7. Be3 {[%emt 0:02:00] 7.a5 is becoming the main line.} b6 {[%emt 0:03:30]} 8. Bd3 {[%emt 0:00:30]} Bb7 {[%emt 0:00:30] B80: Sicilian Scheveningen: 6 g3 and 6 Be3, including English Attack.} 9. O-O {[%emt 0:01:30]} Be7 {[%emt 0:00:30] [#]} 10. Re1 $146 {[%emt 0:31:30]} ({Predecessor:} 10. Nb3 Nbd7 11. f4 Qc7 12. Qe2 O-O 13. Rae1 Nc5 14. Nxc5 bxc5 15. Bd2 Rfe8 16. e5 {0-1 Sayin,A (1881)-Akin,K (1974) TUR-chT 2nd League 2022 (1.6)}) 10... O-O {[%emt 0:02:30] The position is equal.} 11. Qe2 {[%emt 0:05:30]} Nbd7 {[%emt 0:01:30]} 12. Rad1 {[%emt 0:01:30]} Qc7 {[%emt 0:02:30]} 13. f4 {[%emt 0:05:30]} Nc5 {[%emt 0:02:30][%cal Rf6e4]} 14. Bf2 {[%emt 0:00:30]} Rfc8 {[%emt 0:03:30]} 15. Bg3 {[%emt 0:12:30]} Bf8 {[%emt 0:02:30]} 16. e5 {[%emt 0:03:30]} Nxd3 {[%emt 0:01:30]} 17. Rxd3 {[%emt 0:00:30]} dxe5 {[%emt 0:01:30]} 18. fxe5 {[%emt 0:00:30]} Nd5 {[%emt 0:00:30][%cal Rd5c3]} 19. Kh1 {[%emt 0:00:30] [#] Black converts the advantage convincingly.} (19. Ne4 $15) 19... Nxc3 $1 $17 {[%emt 0:00:30]} 20. bxc3 {[%emt 0:01:30]} (20. Rxc3 $17 {is a better defense.} Qd7 21. Rd3) 20... Qc4 {[%emt 0:01:30]} 21. Qg4 {[%emt 0:02:30]} (21. Ra1 $17) 21... Qxa4 $19 {[%emt 0:06:30]} 22. Rf1 {[%emt 0:01:30]} (22. Bh4 $142) 22... Rc7 $40 {[%emt 0:04:30][%mdl 128] Black is out for blood.} 23. h4 {[%emt 0:01:30]} Bd5 {[%emt 0:02:30]} 24. Rf4 {[%emt 0:03:30] [#]} (24. Rb1 {might work better.}) 24... Rxc3 $3 {[%emt 0:06:30][%mdl 576] Decoy} 25. Rd1 {[%emt 0:03:30]} (25. Rd2 Rc4) 25... Qe8 {[%emt 0:06:30][%cal Oh7h5]} 26. Rdf1 {[%emt 0:00:34] [#]} h5 $1 {[%emt 0:08:30]} 27. Qh3 {[%emt 0:01:16]} (27. Qg5 Be7) 27... Ra7 {[%emt 0:01:30]} 28. Qh2 {[%emt 0:01:04]} a5 {[%emt 0:00:30][%cal Ba6a5,Ba5a4,Ba4a3,Ba3a2][%mdl 32]} 29. Be1 {[%emt 0:00:15]} Rc4 {[%emt 0:01:30]} 30. Qg3 {[%emt 0:00:53]} a4 {[%emt 0:00:30]} 31. Bc3 {[%emt 0:01:35]} a3 {[%emt 0:00:30]} 32. Ba1 {[%emt 0:01:05]} a2 {[%emt 0:06:30]} 33. Qg5 {[%emt 0:00:46]} Bc5 {[%emt 0:03:30] White must now prevent ...Bxd4.} 34. c3 {[%emt 0:03:12]} Bxd4 {[%emt 0:00:30]} 35. Rxd4 {[%emt 0:00:00]} Rxd4 {[%emt 0:00:30]} 36. cxd4 {[%emt 0:00:00]} Rc7 {[%emt 0:01:30]} 37. Rf2 {[%emt 0:00:49]} Qc8 {[%emt 0:01:30] Strongly threatening ...Rc1+.} 38. Bb2 {[%emt 0:00:46] Repels Rc1+} Rc2 {[%emt 0:05:13]} 39. Qf4 {[%emt 0:01:31]} Qc7 {[%emt 0:00:12][%cal Oc2b2] ( -> ...Rxb2!)} 40. Kh2 {[%emt 0:00:27] [#]} Rxb2 $1 {[%emt 0:00:15][%mdl 64] Remove Defender. Ingenious play by Akbas!   Weighted Error Value: White=0.45/Black=0.08 (flawless)} 0-1

[Event "Turkish Youth Championships 2023"]
[Site "Samsun"]
[Date "2023.05.20"]
[Round "2.3"]
[White "Tarlabasi, Emirhan"]
[Black "Derbentli, Refik"]
[Result "1-0"]
[WhiteElo "2300"]
[BlackElo "1453"]
[Annotator "TA"]
[PlyCount "97"]
[EventDate "2023.05.19"]
[EventType "swiss"]
[EventCountry "TUR"]
[TimeControl "5400+30"]

{[%evp 9,97,20,29,6,29,2,38,22,60,70,75,77,76,69,87,89,95,88,81,89,89,92,97,94,197,198,197,197,198,198,191,184,184,186,191,185,216,180,202,173,199,199,200,198,200,177,214,202,221,211,225,225,455,446,439,441,415,344,343,333,1025,979,950,509,783,618,554,614,602,602,576,549,975,958,2774,2763,29980,29981,29981,29982,7016,3027,29982,29983,29982,29983,29989,29990,29994,29995]} 1. d4 {[%emt 0:01:00]} Nf6 {[%emt 0:01:00]} 2. c4 {[%emt 0:00:30]} e6 {[%emt 0:00:30]} 3. Nf3 {[%emt 0:00:30]} d5 {[%emt 0:00:30]} 4. Nc3 {[%emt 0:02:30]} Be7 {[%emt 0:06:30]} 5. Bf4 {[%emt 0:00:30]} O-O {[%emt 0:01:30]} 6. a3 {[%emt 0:02:30] D37: Queen's Gambit Declined: 5 Bf4.} a6 {[%emt 0:08:30]} 7. c5 {[%emt 0:05:30]} Nbd7 {[%emt 0:07:30][%cal Bb8d7,Bd7f6,Bf6e4][%mdl 32]} 8. h3 {[%emt 0:04:30] [#] White is slightly better.} Re8 $146 {[%emt 0:08:30]} ({Predecessor:} 8... Ne4 9. Nxe4 dxe4 10. Nd2 e5 11. dxe5 Nxc5 12. Qc2 Bf5 13. e3 Qd7 14. Rd1 Rfd8 {0-1 Aymerich Verdaguer,E (2180)-Diaz Camallonga,C (2337) Mollet del Valles 4th 2016 (4)}) 9. e3 {[%emt 0:02:30]} Ne4 {[%emt 0:04:30]} 10. Qc2 {[%emt 0:08:30]} Nxc3 {[%emt 0:09:30]} 11. Qxc3 {[%emt 0:01:30]} Nf6 {[%emt 0:04:30]} 12. Bd3 {[%emt 0:01:30]} Bd7 {[%emt 0:02:30]} 13. a4 {[%emt 0:02:30] Prevents Bb5. White is much more active.} a5 {[%emt 0:06:30]} 14. O-O {[%emt 0:03:30]} Ne4 {[%emt 0:01:30]} 15. Qc2 {[%emt 0:01:30]} f5 {[%emt 0:00:30]} 16. Ne5 {[%emt 0:00:30]} Bg5 {[%emt 0:06:30] [#]} (16... Rf8 $16 {might work better.}) 17. Bxe4 $1 $18 {[%emt 0:07:30]} Bxf4 {[%emt 0:00:30]} 18. Bxf5 {[%emt 0:00:30]} Bh2+ {[%emt 0:04:30]} 19. Kxh2 {[%emt 0:00:30]} exf5 {[%emt 0:00:30]} 20. f4 {[%emt 0:02:30]} Ra6 {[%emt 0:01:30]} 21. Rf3 {[%emt 0:04:30]} Rf6 {[%emt 0:03:30]} 22. Rh1 {[%emt 0:03:30]} Be6 {[%emt 0:00:58]} 23. Kg1 {[%emt 0:00:30]} Rh6 {[%emt 0:00:41]} 24. Kf2 {[%emt 0:02:30]} Qe7 {[%emt 0:01:52]} 25. Qb3 {[%emt 0:01:30]} c6 {[%emt 0:01:54]} 26. Qc3 {[%emt 0:01:30]} Qc7 {[%emt 0:01:04]} 27. Kg1 {[%emt 0:01:30]} Ra8 {[%emt 0:01:34]} 28. Rh2 {[%emt 0:03:30]} Qe7 {[%emt 0:02:27]} 29. Qc2 {[%emt 0:00:30]} Rc8 {[%emt 0:03:16]} 30. g4 {[%emt 0:06:30][%cal Bg2g4,Bg4f5][%mdl 32]} Qh4 $2 {[%emt 0:01:29]} (30... g6 31. g5 Rh4) 31. gxf5 {[%emt 0:03:30]} Qe1+ {[%emt 0:01:42]} 32. Kg2 {[%emt 0:00:00]} Bf7 {[%emt 0:00:39]} 33. Rg3 {[%emt 0:01:00] Threatens to win with Rh1.} Bh5 {[%emt 0:00:31]} 34. Rh1 {[%emt 0:00:30]} Qb4 {[%emt 0:00:46]} (34... Qe2+ 35. Qxe2 Bxe2) 35. Rg1 {[%emt 0:03:30]} Rc7 {[%emt 0:00:14]} 36. Kf2 {[%emt 0:02:30]} Be8 {[%emt 0:00:56]} (36... b5 $142 37. Rg5 Be8) 37. Nd3 {[%emt 0:02:26]} Qc4 {[%emt 0:00:42]} 38. Qxc4 {[%emt 0:00:30]} dxc4 {[%emt 0:00:30]} 39. Ne5 {[%emt 0:00:00]} Rh5 {[%emt 0:01:29]} 40. f6 {[%emt 0:00:04][%cal Rg3g7]} Bg6 {[%emt 0:00:39]} 41. Nxg6 {[%emt 0:00:30] White wants to mate with Ne7+.} hxg6 {[%emt 0:00:30]} 42. Rxg6 {[%emt 0:00:30]} Rxh3 {[%emt 0:00:00]} 43. Rxg7+ {[%emt 0:00:30]} Rxg7 {[%emt 0:00:27]} 44. Rxg7+ {[%emt 0:00:30] KR-KR} Kf8 {[%emt 0:00:00]} 45. Rxb7 {[%emt 0:00:00] Threatening mate with e4.} Rh1 {[%emt 0:00:00] [#]} 46. d5 $1 {[%emt 0:00:00][%cal Bd4d5,Bd5c6,Bc6c7][%mdl 32] White mates.} Rh2+ {[%emt 0:01:48]} 47. Kg3 {[%emt 0:00:30]} Rd2 {[%emt 0:00:22]} 48. dxc6 {[%emt 0:00:00]} c3 {[%emt 0:01:09]} 49. c7 {[%emt 0:00:00] Black did not feel at home in the position after the opening.   Weighted Error Value: White=0.33/Black=0.65} 1-0

[Event "Turkish Youth Championships 2023"]
[Site "Samsun"]
[Date "2023.05.20"]
[Round "2.4"]
[White "Isilak, Enes"]
[Black "Sahbudak, Baris Cinar"]
[Result "1-0"]
[ECO "D76"]
[WhiteElo "2181"]
[BlackElo "1603"]
[Annotator "TA"]
[PlyCount "105"]
[EventDate "2023.05.19"]
[EventType "swiss"]
[EventCountry "TUR"]
[SourceTitle "playchess.com"]
[Source "ChessBase"]
[SourceQuality "1"]
[TimeControl "5400+30"]

{[%evp 18,105,26,-8,35,38,92,77,87,87,114,96,109,110,107,114,107,100,119,119,137,132,143,91,153,92,223,152,155,148,229,223,231,240,222,197,201,172,272,271,271,268,264,256,247,216,229,175,230,234,230,234,206,179,178,177,176,170,402,406,404,391,404,374,413,413,684,680,725,771,791,793,5818,647,587,0,1469,1468,29979,29978,29987,29988,29987,29986,29986,29976,29973,5490,29974,11237]} 1. d4 Nf6 2. c4 g6 3. g3 Bg7 4. Bg2 d5 5. cxd5 Nxd5 6. Nf3 O-O 7. O-O Nb6 8. Nc3 {[%cal Bb1c3,Bc3a4,Ba4c5,Bc5d3][%mdl 32]} Nc6 9. e3 Re8 10. h3 $1 {[%mdl 4] is recently more successful than 10.Re1.} (10. d5 $5 {[%cal Rd5c6]} Ne5 11. Nxe5 Bxe5 12. Qc2 $11) 10... Be6 {D76: Fianchetto Grünfeld: Main Line with 7...Nb6.} 11. b3 {[%emt 0:24:00] [#]} Nd5 $146 {[%emt 0:17:00]} (11... a5 $14) ({Predecessor:} 11... a5 12. Bb2 a4 13. Nxa4 Nxa4 14. bxa4 Qd7 15. Kh2 Bc4 16. Rg1 Nb4 17. Nd2 Ba6 18. Ba3 {0-1 Sirosh,I (2380)-Mosadeghpour,M (2515) Olympiad-43 Batumi 2018 (5.12)}) 12. Na4 $16 {[%emt 0:05:30]} Bc8 {[%emt 0:06:30] White is better.} 13. Bb2 {[%emt 0:00:30]} e6 {[%emt 0:00:30]} 14. Rc1 {[%emt 0:01:30]} Nce7 {[%emt 0:05:30]} 15. e4 {[%emt 0:03:30]} Nb6 {[%emt 0:07:30]} 16. Nc5 {[%emt 0:00:00]} Nd7 {[%emt 0:01:30]} 17. Nd3 {[%emt 0:01:00] White is more active.} b6 {[%emt 0:02:30]} 18. Qc2 {[%emt 0:09:30]} Ba6 {[%emt 0:00:30]} 19. Rfd1 {[%emt 0:00:30]} c6 {[%emt 0:01:30]} 20. b4 {[%emt 0:03:30]} ({Better is} 20. Nf4) 20... Rc8 {[%emt 0:01:30]} (20... Bxd3 $142 21. Qxd3 (21. Rxd3 Bh6 $16) 21... b5) 21. Qb3 {[%emt 0:03:30]} ({White should try} 21. Nf4) 21... Qc7 {[%emt 0:01:30]} (21... Bxd3 $16 22. Rxd3 (22. Qxd3 b5 $16) 22... b5) 22. h4 {[%emt 0:22:30] aiming for Nf4.} Bxd3 {[%emt 0:10:30]} 23. Rxd3 {[%emt 0:00:00][%cal Od4d5]} ({Resist} 23. Qxd3 b5 $16) 23... c5 {[%emt 0:02:30]} (23... Qd8 $16 24. Bh3 Nf8) 24. dxc5 $18 {[%emt 0:00:00]} bxc5 {[%emt 0:00:30]} 25. Bxg7 {[%emt 0:00:30]} Kxg7 {[%emt 0:00:30]} 26. Qb2+ {[%emt 0:00:30]} Kg8 {[%emt 0:01:30]} 27. Qd2 {[%emt 0:00:00]} Ne5 {[%emt 0:01:30]} (27... Nf6 $142 28. e5 (28. bxc5 Nxe4 29. Qe3 Nf6 $14) (28. Rxc5 Qb8 $16) 28... Nfd5) 28. Rxc5 {[%emt 0:00:00]} Nxf3+ {[%emt 0:00:00]} 29. Bxf3 {[%emt 0:00:30]} Qb6 {[%emt 0:01:00] Black is weak on the dark squares} 30. Rd6 {[%emt 0:08:30]} Qb8 {[%emt 0:05:30]} 31. Rxc8 {[%emt 0:06:17]} Rxc8 {[%emt 0:00:30]} 32. a3 {[%emt 0:04:38]} Nc6 {[%emt 0:02:30]} (32... Nd5 {was called for.}) 33. Be2 {[%emt 0:00:45]} Qc7 {[%emt 0:01:30]} 34. Rd7 {[%emt 0:02:31]} Qb8 {[%emt 0:06:30]} 35. Qd6 {[%emt 0:01:45]} Qxd6 {[%emt 0:03:30]} 36. Rxd6 {[%emt 0:00:04][%cal Bd7d6,Bd6c6,Bc6c7][%mdl 4128] Endgame KRB-KRN} Rc7 {[%emt 0:07:10]} 37. b5 {[%emt 0:00:07]} Ne5 {[%emt 0:02:01] [#]} (37... Na5 38. f4 Kf8) 38. f4 {[%emt 0:00:05]} Nd7 {[%emt 0:00:00]} 39. Rc6 {[%emt 0:00:26] Prevents Nb6.} Rb7 {[%emt 0:01:26]} 40. a4 {[%emt 0:00:13][%cal Ba3a4,Ba4a5,Ba5a6][%mdl 32]} Kf8 {[%emt 0:01:53]} 41. a5 {[%emt 0:01:22]} Ke7 {[%emt 0:00:00]} (41... Nf6 $142 42. b6 axb6 43. axb6 (43. Rxb6 Rc7 $18) 43... Ke8) 42. a6 {[%emt 0:00:06]} Rb6 {[%emt 0:07:43]} 43. Rc7 {[%emt 0:00:27]} Kd8 {[%emt 0:00:04]} 44. Rxa7 {[%emt 0:00:19]} Kc8 {[%emt 0:02:21]} 45. Ra8+ {[%emt 0:00:30]} (45. Rxd7 $142 Kxd7 46. a7) 45... Rb8 {[%emt 0:00:05]} 46. Ra7 {[%emt 0:01:25] [#]} (46. Rxb8+ $18 Kxb8 47. e5) 46... f6 $2 {[%emt 0:00:30][%mdl 8192]} (46... Rb6 $11 47. Rxd7 {[%mdl 64] Clearance, Promotion} Kxd7) 47. Bc4 {[%emt 0:01:19]} Nc5 {[%emt 0:00:21]} 48. Rxh7 {[%emt 0:00:08]} e5 {[%emt 0:00:38]} 49. a7 {[%emt 0:00:30]} Ra8 {[%emt 0:00:30]} 50. Rh8+ {[%emt 0:00:00]} Kb7 {[%emt 0:00:00]} 51. Bd5+ {[%emt 0:00:18]} Kxa7 {[%emt 0:00:24]} 52. Rxa8+ {[%emt 0:00:00]} Kb6 {[%emt 0:00:00]} 53. Rf8 {[%emt 0:00:00] Weighted Error Value: White=0.31/Black=0.49} 1-0